bitfinex/quotes_SOLUSD_20250518
["timestamp","ask_amount","ask_price","bid_price","bid_amount"]
[1747529313625,26.0,166.94,166.88,20.62]
[1747529313913,5.99053495,166.93,166.88,20.62]
[1747529314087,5.99053495,166.93,166.86,5.99304806]
[1747529315689,26.0,166.94,166.85,24.64298752]
[1747529315893,5.99006259,166.95,166.85,24.64298752]
[1747529316089,26.0,166.96,166.85,65.62650565]
[1747529316604,9.30435235,167.0,166.89,18.64964886]
[1747529316788,26.0,166.99,166.91,18.64964886]
[1747529317501,31.98846672,166.99,166.92,5.99089384]
[1747529319191,9.30435235,167.0,166.93,18.64964886]
[1747529319397,15.29253632,167.0,166.93,18.64964886]
[1747529319597,15.29253632,167.0,166.92,13.85199384]
[1747529320416,9.30435235,167.0,166.93,18.64964886]
[1747529320612,154.35878901,167.03,166.93,18.64964886]
[1747529320804,16.15878901,167.02,166.93,18.64964886]
[1747529321115,16.15878901,167.01,166.92,7.8611]
[1747529321322,42.15878901,167.0,166.92,7.8611]
[1747529321706,26.0,167.0,166.92,13.85193911]
[1747529322518,42.15878901,167.0,166.92,7.8611]
[1747529323129,42.15878901,167.0,166.92,13.85190682]
[1747529323510,5.98838253,166.99,166.92,13.85190682]
[1747529325324,22.14609591,167.02,166.93,18.64964886]
[1747529326451,170.18705881,167.03,166.95,18.64964886]
[1747529327519,186.34584782,167.03,166.96,5.98945855]
[1747529327722,186.34584782,167.03,166.95,5.98971892]
[1747529329035,186.34584782,167.03,166.94,24.63972712]
[1747529329225,16.15878901,167.02,166.94,24.63972712]
[1747529329423,5.9876654,167.01,166.94,24.63972712]
[1747529329631,5.9876654,167.01,166.94,44.99972712]
[1747529330531,5.9873069,167.02,166.94,44.99972712]
[1747529330731,5.9873069,167.02,166.94,24.63972712]
[1747529330934,5.9873069,167.02,166.94,44.97972712]
[1747529331756,16.15878901,167.01,166.93,5.99053495]
[1747529331951,16.15878901,167.0,166.92,13.85189356]
[1747529332419,16.15878901,166.99,166.92,7.8611]
[1747529332843,20.95557417,167.02,166.92,7.8611]
[1747529332844,20.95557417,167.02,166.92,13.851871]
[1747529333142,16.15878901,167.0,166.92,13.851871]
[1747529333718,5.98838253,166.99,166.92,7.8611]
[1747529336641,22.14717154,166.99,166.92,7.8611]
[1747529336842,16.15878901,166.96,166.88,33.97054666]
[1747529337346,10.10440724,166.96,166.88,33.97054666]
[1747529337537,10.10440724,166.96,166.88,27.9783]
[1747529337742,10.10440724,166.96,166.83,239.28463391]
[1747529337743,10.10440724,166.92,166.85,20.24]
[1747529338246,10.10440724,166.93,166.85,20.24]
[1747529338435,5.98838253,166.99,166.86,18.64964886]
[1747529338624,42.09340778,166.98,166.89,18.64964886]
[1747529339225,31.98900054,166.98,166.89,18.64964886]
[1747529340145,26.0,166.98,166.89,18.64964886]
[1747529340450,138.2,167.0,166.91,24.80954886]
[1747529340648,138.2,167.0,166.92,20.26]
[1747529340944,138.2,167.0,166.93,5.99053495]
[1747529341550,138.2,167.0,166.93,20.96687233]
[1747529341749,138.2,167.0,166.94,18.64964886]
[1747529342945,138.2,167.0,166.95,5.98981731]
[1747529343137,5.98694995,167.03,166.95,5.98981731]
[1747529343534,148.30440724,167.06,166.96,18.64964886]
[1747529343757,144.18590681,167.06,166.97,1.5166]
[1747529344054,170.18590681,167.06,166.97,1.5166]
[1747529344739,170.18590681,167.06,166.97,7.50535449]
[1747529344947,180.29031405,167.06,166.97,1.5166]
[1747529345141,170.18590681,167.06,166.98,18.64964886]
[1747529345539,170.18590681,167.06,166.97,1.5166]
[1747529345750,10.10440724,167.05,166.97,1.5166]
[1747529346063,170.18590681,167.06,166.96,20.3]
[1747529346064,10.10440724,167.02,166.96,20.3]
[1747529346772,10.10440724,167.02,166.94,4.25442848]
[1747529346933,5.9876654,167.01,166.94,4.25442848]
[1747529347551,5.9876654,167.01,166.95,18.64964886]
[1747529348060,5.98737884,167.02,166.96,3.4021052]
[1747529349257,5.98737884,167.02,166.95,24.63937118]
[1747529350156,5.98737884,167.02,166.95,18.64964886]
[1747529350458,16.09178608,167.02,166.93,27.83260138]
[1747529350659,16.09178608,167.02,166.93,32.08702986]
[1747529351734,31.06005335,167.02,166.93,32.08702986]
[1747529351928,5.98737884,167.02,166.94,18.64964886]
[1747529352263,5.98737884,167.02,166.95,3.4027242]
[1747529352442,148.30440724,167.06,166.95,3.4027242]
[1747529352642,144.18598026,167.06,166.95,3.4027242]
[1747529352849,138.2,167.06,166.95,3.4027242]
[1747529353057,5.98562068,167.07,166.97,18.64964886]
[1747529353365,5.98562068,167.07,166.99,18.64964886]
[1747529353563,5.98562068,167.07,167.01,18.64964886]
[1747529353859,5.98562068,167.07,167.01,24.63716621]
[1747529355040,5.98562068,167.07,167.01,18.64964886]
[1747529355441,10.10440724,167.06,167.0,20.14]
[1747529356043,10.10440724,167.05,167.0,20.14]
[1747529356257,10.10440724,167.05,166.97,18.64964886]
[1747529356258,26.0,167.04,166.97,18.64964886]
[1747529356454,36.10440724,167.04,166.97,18.64964886]
[1747529356659,36.10440724,167.04,166.97,24.63873215]
[1747529356660,26.0,167.04,166.97,24.63873215]
[1747529357167,5.98694845,167.03,166.97,24.63873215]
[1747529357468,5.98694845,167.03,166.97,44.71873215]
[1747529358658,31.98674972,167.04,166.97,44.71873215]
[1747529358964,31.98674972,167.04,166.97,42.21873215]
[1747529359545,31.98674972,167.04,166.98,3.39680974]
[1747529360367,42.09115696,167.04,166.98,3.39680974]
[1747529360862,42.09115696,167.04,166.96,32.40866712]
[1747529361066,42.09115696,167.04,166.96,26.4193]
[1747529361366,57.05763205,167.04,166.96,6.3993]
[1747529361562,57.05763205,167.04,166.96,20.02]
[1747529361563,10.10440724,167.02,166.96,20.02]
[1747529361764,5.9876654,167.01,166.96,20.02]
[1747529363158,31.9876654,167.01,166.93,1.6221]
[1747529363463,31.9876654,167.01,166.94,20.0]
[1747529363464,42.09207264,167.01,166.94,20.0]
[1747529364070,42.09207264,167.01,166.93,1.6221]
[1747529364278,42.09207264,167.01,166.93,21.6221]
[1747529364774,42.09207264,167.01,166.93,27.61245329]
[1747529365579,5.98838253,166.99,166.93,21.6221]
[1747529366079,5.98838253,166.99,166.93,27.61249575]
[1747529366264,5.98838253,166.99,166.93,21.6221]
[1747529367479,5.98838253,166.99,166.93,1.6221]
[1747529367707,5.98802395,167.0,166.93,1.6221]
[1747529367886,10.10440724,166.98,166.93,1.6221]
[1747529368181,16.09243119,167.0,166.93,1.6221]
[1747529370082,16.09243119,167.0,166.93,7.61259505]
[1747529371082,144.18771447,167.01,166.93,7.61259505]
[1747529371283,138.2,167.01,166.94,18.64964886]
[1747529371465,5.98623166,167.05,166.94,18.64964886]
[1747529371875,31.98623166,167.05,166.94,18.64964886]
[1747529372485,144.18594227,167.06,166.94,18.64964886]
[1747529372693,144.18590443,167.06,166.96,18.64964886]
[1747529372882,144.18590443,167.06,166.98,18.64964886]
[1747529373486,144.18590443,167.06,166.99,3.39433152]
[1747529373694,138.2,167.06,166.99,9.38239309]
[1747529374389,31.98559504,167.07,166.99,9.38239309]
[1747529375068,31.98559504,167.07,167.0,9.38225833]
[1747529376068,5.98479861,167.09,167.01,1.5613]
[1747529376390,180.28894973,167.1,167.01,1.5613]
[1747529376565,10.10440724,167.09,167.01,1.5613]
[1747529376978,180.28894973,167.1,167.01,1.5613]
[1747529377400,180.28894973,167.1,167.02,5.9873069]
[1747529378094,170.18454249,167.1,167.02,5.9873069]
[1747529378265,180.28894973,167.1,167.02,5.9873069]
[1747529378467,180.28894973,167.1,167.03,19.84]
[1747529378881,10.10440724,167.09,167.03,19.84]
[1747529379793,5.98515681,167.08,167.03,19.84]
[1747529380166,16.08956405,167.08,167.03,19.84]
[1747529380367,170.18455407,167.1,167.03,32.23871886]
[1747529381773,164.2,167.1,167.03,32.23871886]
[1747529383296,18.02415998,167.12,167.03,32.23871886]
[1747529383297,7.91975274,167.12,167.04,18.64964886]
[1747529383682,5.98376956,167.12,167.05,5.98623166]
[1747529384196,16.08787092,167.13,167.05,5.98623166]
[1747529388699,16.08787092,167.13,167.05,25.72623166]
[1747529388886,16.08848958,167.11,167.04,5.98646681]
[1747529389200,10.10440724,167.1,167.03,26.1518]
[1747529390306,5.98479861,167.09,167.03,26.1518]
[1747529391907,14.9599554,167.12,167.03,32.13864932]
[1747529391908,5.98372426,167.12,167.03,32.13864932]
[1747529394012,16.0881315,167.12,167.03,32.13864932]
[1747529396322,16.0881315,167.12,167.04,25.66634139]
[1747529398905,5.98372426,167.12,167.04,25.66634139]
[1747529399213,16.0881315,167.12,167.04,25.66634139]
[1747529400211,10.10440724,167.1,167.03,6.4118]
[1747529400391,10.10440724,167.09,167.03,6.4118]
[1747529401106,10.10440724,167.08,167.03,6.4118]
[1747529401297,10.10440724,167.08,167.01,21.1813]
[1747529401712,26.0,167.09,167.01,27.16891694]
[1747529402807,31.98410878,167.11,167.02,18.64964886]
[1747529403522,154.28804861,167.13,167.02,18.64964886]
[1747529403831,26.0,167.12,167.04,18.64964886]
[1747529404232,26.0,167.12,167.05,5.98623166]
[1747529404404,138.2,167.13,167.06,6.2956]
[1747529404902,138.2,167.17,167.07,38.24964886]
[1747529405114,10.10440724,167.16,167.08,1.5697]
[1747529405307,10.10440724,167.14,167.08,1.5697]
[1747529405822,36.10440724,167.15,167.08,1.5697]
[1747529406731,5.98300825,167.14,167.08,1.5697]
[1747529408404,16.08741549,167.14,167.08,1.5697]
[1747529408712,5.98300825,167.14,167.08,1.5697]
[1747529413308,10.10440724,167.12,167.06,6.2956]
[1747529413519,36.10440724,167.11,167.03,7.64731081]
[1747529413732,31.98417173,167.11,167.03,7.64731081]
[1747529413943,36.10440724,167.14,167.04,18.64964886]
[1747529414437,26.0,167.13,167.04,18.64964886]
[1747529415139,36.10440724,167.15,167.04,18.64964886]
[1747529415636,10.10440724,167.14,167.05,3.39243809]
[1747529416003,16.08772281,167.14,167.07,18.64964886]
[1747529416213,5.98331557,167.14,167.07,18.64964886]
[1747529417147,16.08772281,167.14,167.06,18.64964886]
[1747529417804,138.2,167.17,167.06,6.6116]
[1747529418006,164.2,167.17,167.07,1.6605]
[1747529418232,164.2,167.17,167.09,18.64964886]
[1747529418416,170.18203747,167.17,167.09,18.64964886]
[1747529419305,170.18203747,167.17,167.1,5.98444045]
[1747529419506,31.98203747,167.17,167.1,5.98444045]
[1747529420331,26.0,167.17,167.1,5.98444045]
[1747529420719,31.98132247,167.19,167.11,3.3937101]
[1747529421038,26.0,167.19,167.12,18.64964886]
[1747529421535,26.0,167.19,167.13,8.2359]
[1747529421733,31.98050355,167.21,167.13,8.2359]
[1747529422219,5.98050355,167.21,167.13,8.2359]
[1747529422416,5.97943075,167.24,167.14,44.15265711]
[1747529422622,12.61037952,167.25,167.14,59.11017775]
[1747529422818,5.97916235,167.25,167.14,59.11017775]
[1747529423021,26.0,167.25,167.14,59.11017775]
[1747529423240,5.97800095,167.28,167.16,18.64964886]
[1747529423424,5.97800095,167.28,167.17,19.68]
[1747529423737,5.97800095,167.28,167.18,18.64964886]
[1747529423931,5.47800095,167.28,167.19,8.2359]
[1747529424233,31.47800095,167.28,167.21,18.64964886]
[1747529424437,5.47800095,167.28,167.21,24.6300586]
[1747529425309,5.47800095,167.28,167.21,18.64964886]
[1747529427546,5.47800095,167.28,167.19,8.2359]
[1747529427547,10.10440724,167.27,167.19,8.2359]
[1747529427727,20.42300334,167.28,167.19,8.2359]
[1747529427728,10.10440724,167.25,167.19,8.2359]
[1747529428235,46.42300334,167.28,167.19,8.2359]
[1747529428236,10.10440724,167.26,167.19,8.2359]
[1747529428836,10.10440724,167.24,167.18,19.52]
[1747529429048,10.10440724,167.23,167.18,19.52]
[1747529429337,5.98014591,167.22,167.18,19.52]
[1747529430547,16.08455315,167.22,167.18,19.52]
[1747529430723,31.03491793,167.22,167.18,19.52]
[1747529433510,5.98014591,167.22,167.18,19.52]
[1747529434226,5.97943075,167.24,167.18,19.52]
[1747529434430,5.97943075,167.24,167.18,25.50141741]
[1747529434945,5.97913144,167.25,167.18,25.50141741]
[1747529435829,5.97871577,167.26,167.18,25.50141741]
[1747529436038,144.17845996,167.27,167.2,7.9419]
[1747529437448,5.97845996,167.27,167.2,13.92259777]
[1747529438545,5.97764361,167.29,167.2,13.92259777]
[1747529438848,10.10440724,167.28,167.2,13.92259777]
[1747529439428,5.97764361,167.29,167.2,13.92259777]
[1747529439632,10.10440724,167.28,167.2,13.92259777]
[1747529440060,5.97835834,167.27,167.2,13.92259777]
[1747529440757,5.97764361,167.29,167.21,18.64964886]
[1747529441267,16.08205085,167.29,167.21,18.64964886]
[1747529441761,5.97764361,167.29,167.21,18.64964886]
[1747529442059,10.10440724,167.29,167.21,24.63002681]
[1747529442260,10.10440724,167.26,167.2,7.9419]
[1747529442730,26.0,167.28,167.2,7.9419]
[1747529443164,10.10440724,167.26,167.2,7.9419]
[1747529443754,10.10440724,167.27,167.2,7.9419]
[1747529443963,5.97871577,167.26,167.2,7.9419]
[1747529444438,5.97871577,167.26,167.2,6.9419]
[1747529445350,16.08312301,167.26,167.2,6.9419]
[1747529446460,16.08312301,167.26,167.2,12.92275398]
[1747529447041,5.97871577,167.26,167.2,12.92275398]
[1747529449065,5.97871577,167.26,167.2,6.9419]
[1747529449367,16.08312301,167.26,167.2,26.3019]
[1747529450767,10.10440724,167.23,167.17,19.34]
[1747529451151,10.10440724,167.23,167.16,27.5593]
[1747529451355,10.10440724,167.23,167.17,19.34]
[1747529452048,10.10440724,167.22,167.17,19.34]
[1747529452570,5.98050355,167.21,167.17,19.34]
[1747529452956,5.98023457,167.22,167.17,19.34]
[1747529454056,10.10440724,167.25,167.17,25.32187092]
[1747529454260,16.08312301,167.26,167.17,25.32187092]
[1747529454448,5.97871577,167.26,167.18,18.64964886]
[1747529454745,16.08312301,167.26,167.18,18.64964886]
[1747529455768,16.08312301,167.26,167.18,24.63119087]
[1747529455940,10.10440724,167.25,167.18,24.63119087]
[1747529456578,20.92482676,167.27,167.18,24.63119087]
[1747529456754,10.10440724,167.25,167.18,24.63119087]
[1747529457475,10.10440724,167.26,167.18,24.63119087]
[1747529457684,16.08276558,167.27,167.18,24.63119087]
[1747529459083,5.97835834,167.27,167.18,24.63119087]
[1747529459781,5.97835834,167.27,167.19,3.37536773]
[1747529460279,5.97835834,167.27,167.2,15.58069115]
[1747529461482,14.94307475,167.31,167.23,1.5899]
[1747529461654,16.08133629,167.31,167.23,20.9099]
[1747529461972,10.10440724,167.3,167.23,20.9099]
[1747529462867,148.30440724,167.32,167.23,26.88946456]
[1747529463070,10.10440724,167.34,167.24,18.64964886]
[1747529464282,5.97480895,167.37,167.28,18.64964886]
[1747529464473,5.97480895,167.37,167.3,18.64964886]
[1747529464667,16.07847976,167.39,167.3,18.64964886]
[1747529465069,10.10440724,167.36,167.29,38.64]
[1747529465259,10.10440724,167.36,167.31,0.7]
[1747529465450,10.10440724,167.35,167.31,0.7]
[1747529465656,10.10440724,167.36,167.31,0.7]
[1747529465962,10.10440724,167.37,167.31,0.7]
[1747529466175,5.97407252,167.39,167.31,0.7]
[1747529466367,10.10440724,167.38,167.31,0.7]
[1747529468076,5.97407252,167.39,167.31,6.67682496]
[1747529468471,16.07847976,167.39,167.31,6.67682496]
[1747529470490,10.10440724,167.38,167.31,0.7]
[1747529470682,5.97407252,167.39,167.31,6.67680258]
[1747529470874,16.07847976,167.39,167.31,6.67680258]
[1747529472987,10.10440724,167.38,167.31,6.67680258]
[1747529474191,26.0,167.4,167.31,6.67680258]
[1747529474370,16.07812289,167.4,167.31,6.67680258]
[1747529474562,5.97371565,167.4,167.31,6.67680258]
[1747529474767,5.97371565,167.4,167.32,18.64964886]
[1747529475072,5.97371565,167.4,167.33,6.2509]
[1747529475475,148.94297606,167.41,167.33,6.2509]
[1747529475670,142.96954311,167.41,167.34,1.6409]
[1747529475891,142.96954311,167.41,167.35,19.36]
[1747529476182,4.76954311,167.41,167.36,24.62479226]
[1747529476977,4.76954311,167.41,167.36,39.56265076]
[1747529479272,4.76954311,167.41,167.36,42.5181012]
[1747529479796,4.76954311,167.41,167.38,18.64964886]
[1747529480401,4.76954311,167.41,167.4,18.64964886]
[1747529482709,4.76954311,167.41,167.4,5.97371565]
[1747529483680,4.76954311,167.41,167.4,18.64964886]
[1747529485502,4.76954311,167.41,167.4,5.97371565]
[1747529486509,4.76954311,167.41,167.4,18.64964886]
[1747529488901,4.76954311,167.41,167.4,5.97371565]
[1747529489909,4.76954311,167.41,167.4,18.64964886]
[1747529491811,4.76954311,167.41,167.4,5.97371565]
[1747529492112,4.76954311,167.41,167.4,19.3]
[1747529492512,10.74301353,167.41,167.37,19.28]
[1747529492723,10.10440724,167.4,167.33,12.63620772]
[1747529492889,10.74301353,167.41,167.35,19.3]
[1747529494012,10.74301353,167.41,167.35,25.2754009]
[1747529494687,10.74301353,167.41,167.35,19.3]
[1747529495023,10.74301353,167.41,167.35,25.27547026]
[1747529496224,10.10440724,167.39,167.33,6.66]
[1747529496518,10.10440724,167.38,167.33,25.96]
[1747529497327,5.97442944,167.38,167.33,25.96]
[1747529497524,10.10440724,167.37,167.31,0.7]
[1747529497692,10.10440724,167.37,167.31,20.0]
[1747529497890,10.10440724,167.36,167.31,20.0]
[1747529499529,5.97550044,167.35,167.31,20.0]
[1747529499685,5.97550044,167.35,167.31,0.7]
[1747529500087,16.07961193,167.36,167.31,0.7]
[1747529501190,16.07961193,167.36,167.31,6.67692564]
[1747529501526,19.70340471,167.41,167.31,6.67692564]
[1747529501709,10.10440724,167.4,167.31,25.3265745]
[1747529502595,16.07812289,167.4,167.31,25.3265745]
[1747529502796,16.07812289,167.4,167.32,18.64964886]
[1747529503025,20.84752467,167.41,167.32,18.64964886]
[1747529503530,10.74311743,167.41,167.32,18.64964886]
[1747529503827,10.10440724,167.4,167.32,18.64964886]
[1747529504025,10.10440724,167.39,167.31,0.7]
[1747529504325,10.10440724,167.39,167.31,19.34964886]
[1747529504927,10.10440724,167.39,167.32,5.97650396]
[1747529505125,4.76954311,167.41,167.33,18.64964886]
[1747529505790,14.87395035,167.41,167.33,18.64964886]
[1747529505991,16.07820046,167.4,167.32,5.97650396]
[1747529506226,16.07820046,167.4,167.31,0.7]
[1747529506227,10.10440724,167.39,167.31,6.67681774]
[1747529507227,5.97442944,167.38,167.31,6.67681774]
[1747529507723,10.10440724,167.37,167.31,0.7]
[1747529507896,10.10440724,167.36,167.31,20.0]
[1747529508099,10.10440724,167.35,167.31,0.7]
[1747529508501,10.10440724,167.34,167.31,0.7]
[1747529508704,10.10440724,167.33,167.31,0.7]
[1747529509519,10.10440724,167.32,167.31,0.7]
[1747529510927,10.10440724,167.32,167.25,51.08240854]
[1747529511109,10.10440724,167.31,167.25,51.08240854]
[1747529511924,16.08143456,167.31,167.25,51.08240854]
[1747529512126,10.10440724,167.33,167.25,51.08240854]
[1747529512329,10.10440724,167.34,167.26,18.64964886]
[1747529512626,10.10440724,167.35,167.26,18.64964886]
[1747529513211,10.10440724,167.34,167.27,3.37952383]
[1747529514227,10.10440724,167.33,167.27,3.37952383]
[1747529515023,20.9130019,167.36,167.26,24.62812487]
[1747529515224,10.10440724,167.34,167.26,24.62812487]
[1747529515717,10.10440724,167.32,167.25,51.08230675]
[1747529515920,10.10440724,167.31,167.25,51.08230675]
[1747529516225,31.01740914,167.36,167.27,9.6]
[1747529516524,10.10440724,167.34,167.27,9.6]
[1747529516926,10.10440724,167.34,167.28,19.3]
[1747529517857,10.10440724,167.32,167.28,19.3]
[1747529518036,10.10440724,167.32,167.27,9.6]
[1747529518235,10.10440724,167.32,167.25,25.8034]
[1747529518236,5.97692905,167.31,167.25,45.1034]
[1747529519239,5.97692905,167.31,167.25,51.08233471]
[1747529520051,5.97692905,167.31,167.25,6.5034]
[1747529520205,16.08133629,167.31,167.25,25.8034]
[1747529520406,10.10440724,167.3,167.25,25.8034]
[1747529520642,10.10440724,167.29,167.24,6.33826721]
[1747529521143,10.10440724,167.32,167.25,9.6]
[1747529521864,10.10440724,167.31,167.25,9.6]
[1747529522364,10.10440724,167.3,167.25,9.6]
[1747529522536,16.08205085,167.29,167.25,9.6]
[1747529525432,10.10440724,167.28,167.25,9.6]
[1747529526258,16.08205085,167.29,167.25,9.6]
[1747529526562,10.10440724,167.29,167.25,9.6]
[1747529526867,16.08216977,167.29,167.25,9.6]
[1747529527066,5.97776253,167.29,167.25,9.6]
[1747529527252,10.10440724,167.31,167.25,15.5788934]
[1747529527464,10.10440724,167.31,167.25,5.9788934]
[1747529528364,16.08138868,167.31,167.25,5.9788934]
[1747529528549,10.10440724,167.3,167.24,12.31759376]
[1747529529065,10.10440724,167.3,167.24,6.33826721]
[1747529529285,10.10440724,167.28,167.25,9.6]
[1747529529780,10.10440724,167.28,167.24,6.33826721]
[1747529530174,5.97835834,167.27,167.24,6.33826721]
[1747529530375,10.10440724,167.29,167.24,12.31769451]
[1747529530970,10.10440724,167.29,167.24,6.33826721]
[1747529531982,14.94029448,167.34,167.24,12.31755996]
[1747529532144,10.10440724,167.31,167.24,12.31755996]
[1747529532456,10.10440724,167.32,167.24,12.31755996]
[1747529533870,16.08119098,167.32,167.24,12.31755996]
[1747529534271,10.10440724,167.31,167.25,9.6]
[1747529534477,10.10440724,167.3,167.25,9.6]
[1747529534659,10.10440724,167.3,167.24,12.31755996]
[1747529534972,10.10440724,167.31,167.24,12.31755996]
[1747529536170,10.10440724,167.32,167.24,27.26613685]
[1747529536675,10.10440724,167.34,167.25,18.64964886]
[1747529537174,10.10440724,167.32,167.26,5.97871577]
[1747529537350,5.97588998,167.34,167.26,5.97871577]
[1747529537559,16.08029722,167.34,167.26,5.97871577]
[1747529538046,10.10440724,167.33,167.26,5.97871577]
[1747529538251,5.97657183,167.32,167.26,5.97871577]
[1747529538472,16.08065411,167.33,167.26,5.97871577]
[1747529538772,10.10440724,167.33,167.26,5.97871577]
[1747529538971,10.10440724,167.34,167.26,20.92550519]
[1747529539169,10.10440724,167.34,167.27,9.6]
[1747529539583,10.10440724,167.34,167.28,19.3]
[1747529540081,10.10440724,167.34,167.29,6.3135]
[1747529540280,10.10440724,167.34,167.29,12.29105891]
[1747529541895,5.97513774,167.37,167.29,13.91865891]
[1747529542182,26.0,167.38,167.29,13.91865891]
[1747529542377,10.10440724,167.38,167.3,18.64964886]
[1747529542566,16.07872072,167.39,167.3,18.64964886]
[1747529542765,10.10440724,167.39,167.3,18.64964886]
[1747529543584,16.07849859,167.39,167.3,18.64964886]
[1747529544186,16.07849859,167.39,167.31,3.37461231]
[1747529544569,16.07849859,167.39,167.32,5.97657183]
[1747529544771,10.10440724,167.38,167.32,5.97657183]
[1747529545165,16.07849859,167.39,167.32,5.97657183]
[1747529545566,16.07849859,167.39,167.31,5.97692905]
[1747529545983,5.97409135,167.39,167.31,5.97692905]
[1747529546286,10.10440724,167.38,167.31,5.97692905]
[1747529547762,16.07887388,167.38,167.31,5.97692905]
[1747529548777,138.2,167.4,167.31,5.97692905]
[1747529548988,10.10440724,167.39,167.31,5.97692905]
[1747529549288,10.10440724,167.39,167.32,9.6]
[1747529549885,10.10440724,167.39,167.33,5.97621466]
[1747529551072,16.07857978,167.39,167.33,5.97621466]
[1747529552191,10.10440724,167.38,167.32,9.6]
[1747529552384,10.10440724,167.36,167.32,9.6]
[1747529552692,10.10440724,167.36,167.3,25.27719762]
[1747529553679,16.07984318,167.36,167.3,25.27719762]
[1747529554186,16.07984318,167.36,167.31,5.7]
[1747529555411,138.2,167.4,167.31,11.67671464]
[1747529556195,138.2,167.4,167.32,18.64964886]
[1747529556494,138.2,167.4,167.34,1.6239]
[1747529556696,138.2,167.4,167.34,20.9039]
[1747529557572,154.27814007,167.4,167.34,20.9039]
[1747529558095,144.17373283,167.4,167.34,20.9039]
[1747529558797,144.17373283,167.4,167.34,26.87967749]
[1747529558798,138.2,167.4,167.34,26.87967749]
[1747529561090,4.76954311,167.41,167.34,26.87967749]
[1747529561593,10.74292276,167.41,167.34,26.87967749]
[1747529561979,10.10440724,167.4,167.34,20.9039]
[1747529562180,10.10440724,167.39,167.34,19.28]
[1747529563102,5.97442944,167.38,167.34,19.28]
[1747529563400,5.97442944,167.38,167.33,31.81590223]
[1747529563594,5.97442944,167.38,167.33,25.8398]
[1747529564501,16.07812289,167.4,167.33,31.81598351]
[1747529565201,16.07812289,167.4,167.33,25.8398]
[1747529565403,10.10440724,167.39,167.33,25.8398]
[1747529566994,5.97442944,167.38,167.33,25.8398]
[1747529567197,10.10440724,167.37,167.33,19.28]
[1747529567984,16.07883668,167.38,167.33,19.28]
[1747529569204,5.97371565,167.4,167.33,19.28]
[1747529569502,10.10440724,167.39,167.33,19.28]
[1747529570000,5.97371565,167.4,167.3,20.8293]
[1747529570001,10.10440724,167.36,167.3,20.8293]
[1747529570585,10.10440724,167.36,167.3,26.80652707]
[1747529571285,10.10440724,167.38,167.3,26.80652707]
[1747529571604,10.10440724,167.38,167.31,9.6]
[1747529572201,16.07912496,167.38,167.31,15.57658619]
[1747529574311,16.07850531,167.39,167.31,15.57658619]
[1747529575210,10.10440724,167.38,167.31,15.57658619]
[1747529576795,16.07895648,167.38,167.31,15.57658619]
[1747529576991,10.10440724,167.37,167.31,9.6]
[1747529577305,10.10440724,167.36,167.31,9.6]
[1747529577506,10.10440724,167.35,167.31,9.6]
[1747529577680,10.10440724,167.36,167.31,9.6]
[1747529579106,5.97525722,167.36,167.31,9.6]
[1747529580810,10.10440724,167.33,167.31,9.6]
[1747529581012,36.10440724,167.32,167.26,4.25442848]
[1747529581218,10.10440724,167.27,167.26,4.25442848]
[1747529581593,10.10440724,167.28,167.26,4.25442848]
[1747529581895,10.10440724,167.27,167.22,1.6354]
[1747529582096,10.10440724,167.27,167.22,7.61535227]
[1747529582802,10.10440724,167.27,167.23,5.97969541]
[1747529583120,10.10440724,167.27,167.22,1.6354]
[1747529583415,10.10440724,167.25,167.2,4.25442848]
[1747529583784,10.10440724,167.25,167.2,10.23525478]
[1747529584502,10.10440724,167.26,167.2,10.23525478]
[1747529584817,10.10440724,167.28,167.2,10.23525478]
[1747529585114,10.10440724,167.27,167.2,10.23525478]
[1747529585697,10.10440724,167.27,167.19,19.28]
[1747529585698,10.10440724,167.27,167.22,5.98014591]
[1747529586012,10.10440724,167.26,167.21,3.38619313]
[1747529586210,10.10440724,167.26,167.21,9.36664737]
[1747529586620,10.10440724,167.26,167.21,5.98045424]
[1747529587418,10.10440724,167.26,167.22,9.6]
[1747529588314,10.10440724,167.25,167.22,9.6]
[1747529588899,10.10440724,167.25,167.2,5.98076016]
[1747529589508,10.10440724,167.27,167.19,5.98121897]
[1747529591721,10.10440724,167.27,167.19,20.9342664]
[1747529592427,10.10440724,167.27,167.2,9.6]
[1747529593124,10.10440724,167.27,167.21,5.98050355]
[1747529594015,16.08276929,167.27,167.21,5.98050355]
[1747529594214,5.97836205,167.27,167.19,5.98121897]
[1747529594409,10.10440724,167.24,167.19,5.98121897]
[1747529595319,10.10440724,167.24,167.17,27.2596]
[1747529595320,16.08394407,167.24,167.18,25.28151334]